fUST/lending_fUST_20250720
["ID","MTS","AMOUNT","RATE_DAILY","PERIOD"]
[373313193,1752940931978,6455.44030131,0.00016452,2]
[373313194,1752941101431,363.2685575,0.00015908,2]
[373313244,1752941432137,-571.55,0.00016638,2]
[373314209,1752941468435,271.545616,0.00015908,2]
[373314211,1752941673536,19636.7314425,0.00015832,2]
[373314213,1752941692075,421.954727,0.00013699,2]
[373314215,1752942132466,5883.89030132,0.00016401,2]
[373314216,1752942222511,-542.2106645,0.000167,2]
[373314217,1752942222534,-460.0,0.00016732,2]
[373314218,1752942222558,-460.0,0.00016732,2]
[373314219,1752942222580,-250.01,0.00016732,2]
[373314220,1752942222604,-460.0,0.00016732,2]
[373314221,1752942222627,-460.0,0.00016732,2]
[373314222,1752942222649,-460.0,0.00016732,2]
[373314223,1752942222670,-460.0,0.00016732,2]
[373314224,1752942222691,-460.0,0.00016732,2]
[373314225,1752942222923,-460.0,0.00016732,2]
[373314226,1752942222946,-460.0,0.00016732,2]
[373314227,1752942222968,-460.0,0.00016732,2]
[373314228,1752942222992,-460.0,0.00016732,2]
[373314229,1752942223014,-471.91,0.00016732,2]
[373314230,1752942223036,-460.0,0.00016732,2]
[373314231,1752942223057,-4962.47875627,0.00016733,2]
[373314232,1752942223079,-253.39057923,0.00016733,2]
[373314419,1752942632388,-300.0,0.00016731,2]
[373314421,1752942632398,-514.40934441,0.00016731,2]
[373314423,1752942632409,-2481.23937813,0.00016732,2]
[373314425,1752942632418,-170.43273592,0.00016732,2]
[373314693,1752942638142,-387.57394422,0.00016633,2]
[373314694,1752942638154,-86.8603872,0.00016633,2]
[373314695,1752942638164,-329.56726408,0.00016732,2]
[373314696,1752942638173,-282.23439246,0.00016732,2]
[373314697,1752942638185,-460.0,0.00016732,2]
[373314698,1752942638195,-505.74341026,0.00016732,2]
[373314699,1752942638205,-460.0,0.00016732,2]
[373314700,1752942638215,-460.0,0.00016732,2]
[373314701,1752942638225,-460.0,0.00016732,2]
[373314702,1752942638235,-460.0,0.00016732,2]
[373314703,1752942638247,-460.0,0.00016732,2]
[373314704,1752942638257,-460.0,0.00016732,2]
[373314705,1752942638267,-460.0,0.00016732,2]
[373314706,1752942638276,-1464.84,0.00016732,2]
[373314707,1752942638285,-460.0,0.00016732,2]
[373314708,1752942638295,-654.61,0.00016732,2]
[373314709,1752942638304,-460.0,0.00016732,2]
[373314710,1752942638315,-528.5,0.00016732,2]
[373314711,1752942638325,-460.0,0.00016732,2]
[373314712,1752942638334,-431.34376153,0.00016732,2]
[373314713,1752942638344,-460.0,0.00016732,2]
[373314714,1752942638354,-556.17591022,0.00016732,2]
[373314715,1752942638367,-460.0,0.00016732,2]
[373314716,1752942638377,-460.0,0.00016732,2]
[373314717,1752942638386,-460.0,0.00016732,2]
[373314718,1752942638396,-460.0,0.00016732,2]
[373314719,1752942638406,-460.0,0.00016732,2]
[373314720,1752942638416,-460.0,0.00016732,2]
[373314721,1752942638425,-460.0,0.00016732,2]
[373314722,1752942638435,-460.0,0.00016732,2]
[373314723,1752942638445,-182.21227473,0.00016732,2]
[373314724,1752942638455,-460.0,0.00016732,2]
[373314725,1752942638470,-460.0,0.00016732,2]
[373314726,1752942638484,-217.34,0.00016732,2]
[373314727,1752942638496,-460.0,0.00016732,2]
[373314728,1752942638509,-460.0,0.00016732,2]
[373314729,1752942638522,-460.0,0.00016732,2]
[373314730,1752942638535,-460.0,0.00016732,2]
[373314731,1752942638546,-156.57,0.00016732,2]
[373314732,1752942638556,-923.15,0.00016732,2]
[373314733,1752942638567,-460.0,0.00016732,2]
[373314734,1752942638580,-460.0,0.00016732,2]
[373314735,1752942638592,-460.0,0.00016732,2]
[373314736,1752942638602,-460.0,0.00016732,2]
[373314737,1752942638614,-50000.0,0.00016732,2]
[373314738,1752942638626,-87763.83038227,0.00016733,2]
[373314739,1752942638639,-1747.1384951,0.000168,2]
[373314740,1752942638650,-245.93,0.00016811,3]
[373314741,1752942638664,-737.84,0.00016811,3]
[373314742,1752942638676,-1822.44,0.00016821,3]
[373314743,1752942638687,-911.22,0.00016821,3]
[373314744,1752942638699,-455.61,0.00016821,3]
[373314745,1752942638710,-227.81,0.00016821,3]
[373314746,1752942638723,-683.44,0.00016821,3]
[373314747,1752942638735,-460.0,0.00016831,2]
[373314748,1752942638747,-460.0,0.00016831,2]
[373314749,1752942638759,-460.0,0.00016831,2]
[373314750,1752942638771,-460.0,0.00016831,2]
[373314751,1752942638782,-460.0,0.00016831,2]
[373314752,1752942638794,-460.0,0.00016831,2]
[373314753,1752942638806,-622.1,0.00016831,2]
[373314754,1752942638818,-622.1,0.00016831,2]
[373314755,1752942638829,-622.1,0.00016831,2]
[373314756,1752942638839,-460.0,0.00016831,2]
[373314757,1752942638851,-577.65459766,0.00016831,2]
[373314758,1752942638863,-634.86,0.00016831,2]
[373314759,1752942638874,-460.0,0.00016831,2]
[373314760,1752942638886,-460.0,0.00016831,2]
[373314761,1752942638897,-594.57261724,0.00016831,2]
[373314762,1752942638920,-460.0,0.00016831,2]
[373314763,1752942638934,-460.0,0.00016831,2]
[373314764,1752942638945,-460.0,0.00016831,2]
[373314765,1752942638955,-460.0,0.00016831,2]
[373314766,1752942638968,-460.0,0.00016831,2]
[373314767,1752942638983,-460.0,0.00016831,2]
[373314768,1752942638995,-700.75,0.00016832,2]
[373314769,1752942639006,-521.3216929,0.00016832,2]
[373314770,1752942639019,-460.0,0.00016832,2]
[373314771,1752942639033,-460.0,0.00016832,2]
[373314772,1752942639046,-460.0,0.00016832,2]
[373314773,1752942639058,-622.1,0.00016832,2]
[373314774,1752942639072,-460.0,0.00016832,2]
[373314775,1752942639084,-460.0,0.00016832,2]
[373314776,1752942639097,-460.0,0.00016832,2]
[373314777,1752942639110,-460.0,0.00016832,2]
[373314778,1752942639123,-460.0,0.00016832,2]
[373314779,1752942639137,-460.0,0.00016832,2]
[373314780,1752942639149,-737.40088101,0.00016832,2]
[373314781,1752942639162,-477.58120978,0.00016832,2]
[373314782,1752942639174,-463.69884253,0.00016832,2]
[373314783,1752942639184,-460.0,0.00016832,2]
[373314784,1752942639194,-479.47087374,0.00016832,2]
[373314785,1752942639204,-460.0,0.00016832,2]
[373314786,1752942639214,-460.0,0.00016833,2]
[373314787,1752942639224,-460.0,0.00016833,2]
[373314788,1752942639234,-460.0,0.00016833,2]
[373314789,1752942639245,-460.0,0.00016833,2]
[373314790,1752942639255,-460.36547616,0.00016833,2]
[373314791,1752942639268,-460.0,0.00016833,2]
[373314792,1752942639280,-460.0,0.00016833,2]
[373314793,1752942639293,-460.0,0.00016833,2]
[373314794,1752942639306,-460.0,0.00016833,2]
[373314795,1752942639319,-460.0,0.00016833,2]
[373314796,1752942639330,-460.0,0.00016833,2]
[373314797,1752942639341,-460.0,0.00016833,2]
[373314798,1752942639352,-151.0,0.00016833,2]
[373314799,1752942639368,-151.0,0.00016833,2]
[373314800,1752942639380,-151.86364359,0.00016833,2]
[373314801,1752942639391,-151.55248288,0.00016833,2]
[373314802,1752942639403,-500.0,0.00016833,2]
[373314803,1752942639417,-191.13645195,0.00016833,2]
[373314804,1752942639428,-151.0,0.00016833,2]
[373314805,1752942639441,-201.71522452,0.00016833,2]
[373314806,1752942639452,-460.0,0.00016833,2]
[373314807,1752942639463,-542.47277808,0.00016833,2]
[373314808,1752942639474,-460.0,0.00016833,2]
[373314809,1752942639484,-460.0,0.00016833,2]
[373314810,1752942639495,-460.0,0.00016833,2]
[373314811,1752942639506,-460.0,0.00016833,2]
[373314812,1752942639517,-460.0,0.00016833,2]
[373314813,1752942639528,-460.0,0.00016833,2]
[373314814,1752942639540,-460.0,0.00016833,2]
[373314815,1752942639551,-460.0,0.00016833,2]
[373314816,1752942639563,-151.0,0.00016833,2]
[373314817,1752942639575,-151.0,0.00016833,2]
[373314818,1752942639595,-151.0,0.00016833,2]
[373314819,1752942639608,-151.0,0.00016833,2]
[373314820,1752942639619,-151.590058,0.00016833,2]
[373314821,1752942639632,-460.0,0.00016833,2]
[373314822,1752942639654,-460.0,0.00016833,2]
[373314823,1752942639667,-151.0,0.00016833,2]
[373314825,1752942639679,-223.618976,0.00016833,2]
[373314826,1752942639691,-460.0,0.00016833,2]
[373314827,1752942639702,-460.0,0.00016833,2]
[373314828,1752942639714,-460.0,0.00016833,2]
[373314829,1752942639725,-561.75771539,0.00016833,2]
[373314830,1752942639737,-460.0,0.00016833,2]
[373314831,1752942639748,-460.0,0.00016833,2]
[373314832,1752942639759,-304.604697,0.00016833,2]
[373314833,1752942639771,-460.0,0.00016833,2]
[373314835,1752942639782,-304.604697,0.00016833,2]
[373314837,1752942639793,-151.0,0.00016833,2]
[373314839,1752942639806,-193.46168,0.00016833,2]
[373314841,1752942639818,-460.0,0.00016833,2]
[373314843,1752942639830,-151.0,0.00016833,2]
[373314844,1752942639842,-500.0,0.00016833,2]
[373314846,1752942639853,-151.0,0.00016833,2]
[373314849,1752942639865,-151.0,0.00016833,2]
[373314850,1752942639877,-151.0,0.00016833,2]
[373314851,1752942639888,-151.0,0.00016833,2]
[373314854,1752942639899,-465.45660101,0.00016833,2]
[373314856,1752942639911,-151.0,0.00016833,2]
[373314858,1752942639922,-151.862799,0.00016833,2]
[373314860,1752942639933,-151.0,0.00016833,2]
[373314862,1752942639945,-519.0,0.00016833,2]
[373314865,1752942639956,-151.0,0.00016833,2]
[373314867,1752942639967,-151.0,0.00016833,2]
[373314869,1752942639977,-199.48917632,0.00016833,2]
[373314870,1752942639989,-151.0,0.00016833,2]
[373314871,1752942640000,-460.0,0.00016833,2]
[373314874,1752942640011,-151.0,0.00016833,2]
[373314876,1752942640022,-151.0,0.00016833,2]
[373314878,1752942640033,-460.0,0.00016833,2]
[373314880,1752942640044,-151.0,0.00016833,2]
[373314882,1752942640055,-460.0,0.00016833,2]
[373314884,1752942640067,-151.0,0.00016833,2]
[373314887,1752942640078,-151.0,0.00016833,2]
[373314889,1752942640089,-460.0,0.00016833,2]
[373314891,1752942640100,-151.0,0.00016833,2]
[373314893,1752942640110,-151.0,0.00016833,2]
[373314895,1752942640121,-151.0,0.00016833,2]
[373314897,1752942640131,-236.66958099,0.00016833,2]
[373314899,1752942640142,-151.0,0.00016833,2]
[373314901,1752942640152,-151.0,0.00016833,2]
[373314904,1752942640163,-151.0,0.00016833,2]
[373314906,1752942640173,-151.0,0.00016833,2]
[373314908,1752942640184,-460.0,0.00016833,2]
[373314910,1752942640195,-151.0,0.00016833,2]
[373314912,1752942640206,-151.0,0.00016833,2]
[373314914,1752942640218,-470.28413226,0.00016833,2]
[373314916,1752942640229,-871.879287,0.00016833,2]
[373314919,1752942640240,-871.879287,0.00016833,2]
[373314921,1752942640250,-871.879287,0.00016833,2]
[373314923,1752942640261,-871.879287,0.00016833,2]
[373314925,1752942640272,-151.0,0.00016833,2]
[373314927,1752942640282,-151.0,0.00016833,2]
[373314946,1752942640463,-151.0,0.00016833,2]
[373314949,1752942640479,-151.0,0.00016833,2]
[373314951,1752942640489,-296.309926,0.00016833,2]
[373314953,1752942640499,-209.679894,0.00016834,2]
[373314955,1752942640509,-151.0,0.00016834,2]
[373314957,1752942640519,-151.0,0.00016834,2]
[373314959,1752942640528,-151.0,0.00016834,2]
[373314961,1752942640538,-230.186204,0.00016834,2]
[373314963,1752942640547,-230.186204,0.00016834,2]
[373314965,1752942640557,-249.166881,0.00016834,2]
[373314967,1752942640568,-249.166881,0.00016834,2]
[373314969,1752942640578,-151.0,0.00016834,2]
[373314971,1752942640588,-622.1,0.00016899,2]
[373314973,1752942640598,-304.604697,0.000169,2]
[373314975,1752942640607,-304.604697,0.000169,2]
[373314977,1752942640616,-151.0,0.000169,2]
[373314979,1752942640626,-151.0,0.000169,2]
[373314981,1752942640636,-5069.63212005,0.000169,2]
[373314983,1752942640645,-151.0,0.00016932,2]
[373314985,1752942640654,-151.0,0.00016932,2]
[373314987,1752942640664,-151.0,0.00016932,2]
[373314989,1752942640673,-1539.442629,0.00016932,2]
[373314991,1752942640683,-1539.442629,0.00016932,2]
[373314993,1752942640693,-155.822751,0.00016932,2]
[373314995,1752942640703,-155.822751,0.00016932,2]
[373314997,1752942640712,-151.0,0.00016932,2]
[373314999,1752942640722,-169.119524,0.00016932,2]
[373315001,1752942640731,-169.119524,0.00016932,2]
[373315003,1752942640741,-871.879287,0.00016932,2]
[373315005,1752942640750,-871.879287,0.00016932,2]
[373315007,1752942640758,-151.0,0.00016932,2]
[373315009,1752942640768,-151.0,0.00016934,2]
[373315011,1752942640778,-460.0,0.00017006,2]
[373315013,1752942640786,-460.0,0.00017006,2]
[373315015,1752942640796,-1464.84,0.00017006,2]
[373315017,1752942640805,-460.0,0.00017006,2]
[373315018,1752942640815,-654.61,0.00017006,2]
[373315020,1752942640825,-460.0,0.00017006,2]
[373315022,1752942640834,-528.5,0.00017006,2]
[373315024,1752942640844,-191.69,0.00017006,2]
[373315026,1752942640854,-460.0,0.00017006,2]
[373315028,1752942640863,-151.0,0.00017006,2]
[373315030,1752942640873,-460.0,0.00017006,2]
[373315032,1752942640883,-344.15,0.00017006,2]
[373315034,1752942640893,-460.0,0.00017006,2]
[373315035,1752942640903,-460.0,0.00017006,2]
[373315036,1752942640913,-460.0,0.00017006,2]
[373315037,1752942640923,-460.0,0.00017006,2]
[373315038,1752942640933,-460.0,0.00017006,2]
[373315039,1752942640943,-151.0,0.00017006,2]
[373315041,1752942640953,-923.15,0.00017006,2]
[373315043,1752942640962,-460.0,0.00017006,2]
[373315045,1752942640972,-460.0,0.00017006,2]
[373315047,1752942640982,-151.0,0.00017008,2]
[373315048,1752942640992,-151.0,0.00017008,2]
[373315049,1752942641002,-230.186204,0.00017008,2]
[373315050,1752942641011,-230.186204,0.00017008,2]
[373315051,1752942641021,-151.0,0.00017105,2]
[373315052,1752942641031,-170.69,0.00017105,2]
[373315053,1752942641040,-460.0,0.00017105,2]
[373315054,1752942641049,-460.0,0.00017105,2]
[373315055,1752942641059,-460.0,0.00017105,2]
[373315056,1752942641071,-634.86,0.00017105,2]
[373315057,1752942641082,-460.0,0.00017105,2]
[373315058,1752942641091,-460.0,0.00017105,2]
[373315059,1752942641101,-460.0,0.00017105,2]
[373315060,1752942641110,-460.0,0.00017105,2]
[373315061,1752942641119,-460.0,0.00017105,2]
[373315062,1752942641129,-460.0,0.00017105,2]
[373315063,1752942641138,-460.0,0.00017105,2]
[373315064,1752942641147,-700.75,0.00017106,2]
[373315065,1752942641157,-151.0,0.00017106,2]
[373315066,1752942641168,-249.166881,0.00017106,2]
[373315067,1752942641178,-249.166881,0.00017106,2]
[373315068,1752942641187,-151.0,0.00017106,2]
[373315069,1752942641197,-460.0,0.00017106,2]
[373315070,1752942641207,-460.0,0.00017106,2]
[373315071,1752942641216,-286.916508,0.00017106,2]
[373315072,1752942641225,-622.1,0.00017106,2]
[373315073,1752942641235,-460.0,0.00017106,2]
[373315074,1752942641244,-460.0,0.00017106,2]
[373315075,1752942641254,-151.0,0.00017106,2]
[373315076,1752942641264,-460.0,0.00017106,2]
[373315077,1752942641274,-460.0,0.00017106,2]
[373315078,1752942641284,-460.0,0.00017106,2]
[373315079,1752942641295,-871.879287,0.00017106,2]
[373315080,1752942641305,-871.879287,0.00017106,2]
[373315081,1752942641315,-151.0,0.00017106,2]
[373315082,1752942641325,-151.0,0.00017106,2]
[373315083,1752942641334,-439.80618325,0.00017106,2]
[373315084,1752942641344,-203.19342844,0.00017107,2]
[373315085,1752942641354,-500.0,0.00017107,2]
[373315086,1752942641369,-151.0,0.00017107,2]
[373315087,1752942641379,-500.0,0.00017107,2]
[373315088,1752942641389,-151.0,0.00017107,2]
[373315089,1752942641399,-151.0,0.00017107,2]
[373315090,1752942641409,-519.0,0.00017107,2]
[373315091,1752942641423,-151.0,0.00017107,2]
[373315092,1752942641435,-151.0,0.00017107,2]
[373315093,1752942641445,-460.0,0.00017107,2]
[373315094,1752942641455,-460.0,0.00017107,2]
[373315095,1752942641464,-151.0,0.00017107,2]
[373315096,1752942641475,-153.92587,0.00017107,2]
[373315097,1752942641484,-151.0,0.00017107,2]
[373315098,1752942641494,-151.0,0.00017107,2]
[373315099,1752942641504,-151.0,0.00017107,2]
[373315100,1752942641515,-151.0,0.00017107,2]
[373315101,1752942641524,-1539.442629,0.00017107,2]
[373315102,1752942641534,-1539.442629,0.00017107,2]
[373315103,1752942641543,-460.0,0.00017107,2]
[373315104,1752942641553,-460.0,0.00017107,2]
[373315105,1752942641564,-151.0,0.00017107,2]
[373315106,1752942641574,-151.0,0.00017107,2]
[373315107,1752942641583,-460.0,0.00017107,2]
[373315108,1752942641593,-460.0,0.00017107,2]
[373315109,1752942641603,-460.0,0.00017107,2]
[373315110,1752942641612,-151.0,0.00017107,2]
[373315111,1752942641622,-230.186204,0.00017107,2]
[373315112,1752942641632,-230.186204,0.00017107,2]
[373315113,1752942641642,-477.56073227,0.00017107,2]
[373315114,1752942641652,-460.0,0.00017107,2]
[373315115,1752942641661,-460.0,0.00017107,2]
[373315116,1752942641672,-460.0,0.00017107,2]
[373315117,1752942641681,-304.604697,0.00017107,2]
[373315118,1752942641690,-460.0,0.00017107,2]
[373315119,1752942641699,-304.604697,0.00017107,2]
[373315120,1752942641708,-151.0,0.00017107,2]
[373315121,1752942641718,-155.822751,0.00017107,2]
[373315122,1752942641728,-155.822751,0.00017107,2]
[373315123,1752942641739,-151.0,0.00017107,2]
[373315124,1752942641748,-169.119524,0.00017107,2]
[373315125,1752942641758,-169.119524,0.00017107,2]
[373315126,1752942641767,-871.879287,0.00017107,2]
[373315127,1752942641777,-871.879287,0.00017107,2]
[373315128,1752942641787,-151.0,0.00017107,2]
[373315129,1752942641797,-304.604697,0.00017206,2]
[373315130,1752942641807,-304.604697,0.00017206,2]
[373315131,1752942641820,-151.0,0.00017206,2]
[373315132,1752942641829,-151.0,0.00017206,2]
[373315133,1752942641839,-151.0,0.00017206,2]
[373315134,1752942641848,-151.0,0.00017206,2]
[373315135,1752942641858,-151.0,0.00017209,2]
[373315136,1752942641868,-249.166881,0.00017209,2]
[373315137,1752942641878,-249.166881,0.00017209,2]
[373315138,1752942641887,-151.0,0.00017209,2]
[373315139,1752942641897,-5069.63212,0.0001721,2]
[373315140,1752942641908,-622.1,0.00017228,2]
[373315141,1752942641918,-155.822751,0.00017229,2]
[373315142,1752942641928,-155.822751,0.00017229,2]
[373315143,1752942641937,-169.119524,0.00017229,2]
[373315144,1752942641948,-169.119524,0.00017229,2]
[373315145,1752942641958,-460.0,0.0001728,2]
[373315146,1752942641969,-1464.84,0.0001728,2]
[373315147,1752942641979,-425.23205025,0.0001728,2]
[373315148,1752942641988,-654.61,0.0001728,2]
[373315149,1752942641999,-460.0,0.0001728,2]
[373315150,1752942642011,-528.5,0.0001728,2]
[373315151,1752942642021,-460.0,0.0001728,2]
[373315152,1752942642030,-460.0,0.0001728,2]
[373315153,1752942642040,-460.0,0.0001728,2]
[373315154,1752942642049,-460.0,0.0001728,2]
[373315155,1752942642059,-923.15,0.0001728,2]
[373315156,1752942642075,-299.0777502,0.0001728,2]
[373315157,1752942642084,-460.0,0.0001728,2]
[373315158,1752942642093,-460.0,0.00017379,2]
[373315159,1752942642103,-601.45,0.00017379,2]
[373315160,1752942642113,-634.86,0.00017379,2]
[373315161,1752942642123,-460.0,0.00017379,2]
[373315162,1752942642133,-460.0,0.00017379,2]
[373315163,1752942642142,-354.47709091,0.00017379,2]
[373315164,1752942642151,-460.0,0.00017379,2]
[373315165,1752942642161,-151.0,0.00017379,2]
[373315166,1752942642171,-460.0,0.00017379,2]
[373315167,1752942642181,-460.0,0.00017379,2]
[373315168,1752942642190,-700.75,0.0001738,2]
[373315169,1752942642201,-460.0,0.0001738,2]
[373315170,1752942642212,-460.0,0.0001738,2]
[373315171,1752942642222,-460.0,0.0001738,2]
[373315172,1752942642232,-460.0,0.0001738,2]
[373315173,1752942642242,-151.0,0.0001738,2]
[373315174,1752942642251,-460.0,0.0001738,2]
[373315175,1752942642260,-871.879287,0.0001738,2]
[373315176,1752942642269,-871.879287,0.0001738,2]
[373315177,1752942642279,-151.0,0.0001738,2]
[373315178,1752942642288,-152.784375,0.00017381,2]
[373315179,1752942642297,-151.0,0.00017381,2]
[373315180,1752942642307,-500.0,0.00017381,2]
[373315181,1752942642319,-519.0,0.00017381,2]
[373315182,1752942642329,-198.0,0.00017381,2]
[373315183,1752942642339,-460.0,0.00017381,2]
[373315184,1752942642348,-230.186204,0.00017381,2]
[373315185,1752942642361,-230.186204,0.00017381,2]
[373315186,1752942642371,-304.604697,0.00017381,2]
[373315187,1752942642381,-304.604697,0.00017381,2]
[373315188,1752942642390,-151.0,0.00017381,2]
[373315189,1752942642400,-151.0,0.0001748,2]
[373315190,1752942642410,-151.0,0.0001748,2]
[373315191,1752942642420,-622.1,0.0001752,2]
[373315192,1752942642430,-5069.63212,0.00017521,2]
[373315193,1752942642440,-151.0,0.00017521,2]
[373315194,1752942642451,-249.166881,0.00017521,2]
[373315195,1752942642460,-249.166881,0.00017521,2]
[373315196,1752942642469,-151.0,0.00017521,2]
[373315197,1752942642479,-151.0,0.00017521,2]
[373315198,1752942642489,-151.0,0.00017521,2]
[373315199,1752942642499,-151.0,0.00017521,2]
[373315200,1752942642508,-460.0,0.00017554,2]
[373315201,1752942642517,-1464.84,0.00017554,2]
[373315202,1752942642527,-654.61,0.00017554,2]
[373315203,1752942642537,-460.0,0.00017554,2]
[373315204,1752942642546,-528.5,0.00017554,2]
[373315205,1752942642556,-460.0,0.00017554,2]
[373315206,1752942642570,-460.0,0.00017554,2]
[373315207,1752942642580,-460.0,0.00017554,2]
[373315208,1752942642590,-460.0,0.00017554,2]
[373315209,1752942642600,-871.879287,0.00017554,2]
[373315210,1752942642609,-871.879287,0.00017554,2]
[373315211,1752942642619,-923.15,0.00017554,2]
[373315212,1752942642628,-460.0,0.00017554,2]
[373315213,1752942642638,-4797.56696847,0.00017555,2]
[373315214,1752942642647,-500.0,0.00017569,2]
[373315215,1752942642657,-151.0,0.00017578,2]
[373315216,1752942642666,-151.0,0.00017578,2]
[373315217,1752942642676,-151.0,0.00017578,2]
[373315218,1752942642686,-151.0,0.00017578,2]
[373315219,1752942642695,-1539.442629,0.00017578,2]
[373315220,1752942642705,-1539.442629,0.00017578,2]
[373315222,1752942642715,-155.822751,0.00017578,2]
[373315224,1752942642724,-155.822751,0.00017578,2]
[373315225,1752942642733,-169.119524,0.00017578,2]
[373315227,1752942642743,-169.119524,0.00017578,2]
[373315228,1752942642753,-520.37179257,0.00017585,2]
[373315229,1752942642763,-304.604697,0.00017653,2]
[373315230,1752942642772,-304.604697,0.00017653,2]
[373315231,1752942642781,-151.0,0.00017653,2]
[373315232,1752942642790,-460.0,0.00017653,2]
[373315233,1752942642800,-634.86,0.00017653,2]
[373315234,1752942642810,-460.0,0.00017653,2]
[373315235,1752942642823,-460.0,0.00017653,2]
[373315236,1752942642832,-460.0,0.00017653,2]
[373315237,1752942642841,-460.0,0.00017653,2]
[373315238,1752942642851,-700.75,0.00017654,2]
[373315239,1752942642860,-460.0,0.00017654,2]
[373315240,1752942642869,-460.0,0.00017654,2]
[373315241,1752942642879,-460.0,0.00017654,2]
[373315242,1752942642888,-460.0,0.00017654,2]
[373315244,1752942642897,-239.733694,0.00017654,2]
[373315245,1752942642907,-292.0,0.00017655,2]
[373315247,1752942642916,-500.0,0.00017655,2]
[373315249,1752942642926,-519.0,0.00017655,2]
[373315251,1752942642935,-460.0,0.00017655,2]
[373315253,1752942642945,-151.0,0.00017655,2]
[373315255,1752942642954,-230.186204,0.00017655,2]
[373315257,1752942642963,-230.186204,0.00017655,2]
[373315258,1752942642972,-871.879287,0.00017655,2]
[373315260,1752942642982,-871.879287,0.00017655,2]
[373315262,1752942642991,-151.0,0.00017655,2]
[373315264,1752942643001,-737.40088101,0.00017766,2]
[373315266,1752942643010,-460.0,0.00017828,2]
[373315268,1752942643020,-1464.84,0.00017828,2]
[373315270,1752942643029,-654.61,0.00017828,2]
[373315272,1752942643039,-251.95065326,0.00017828,2]
[373315273,1752942643049,-528.5,0.00017828,2]
[373315275,1752942643059,-460.0,0.00017828,2]
[373315277,1752942643070,-460.0,0.00017828,2]
[373315279,1752942643079,-460.0,0.00017828,2]
[373315281,1752942643089,-923.15,0.00017828,2]
[373315283,1752942643099,-436.16,0.00017828,2]
[373315285,1752942643108,-151.0,0.00017831,2]
[373315286,1752942643117,-151.0,0.00017831,2]
[373315288,1752942643127,-5069.63212,0.00017831,2]
[373315290,1752942643137,-460.0,0.00017927,2]
[373315292,1752942643146,-622.1,0.00017927,2]
[373315294,1752942643156,-634.86,0.00017927,2]
[373315296,1752942643166,-460.0,0.00017927,2]
[373315298,1752942643175,-460.0,0.00017927,2]
[373315299,1752942643184,-460.0,0.00017927,2]
[373315301,1752942643194,-460.0,0.00017927,2]
[373315303,1752942643204,-700.75,0.00017928,2]
[373315305,1752942643214,-304.604697,0.00017928,2]
[373315307,1752942643224,-304.604697,0.00017928,2]
[373315309,1752942643234,-151.0,0.00017928,2]
[373315311,1752942643244,-460.0,0.00017928,2]
[373315312,1752942643254,-460.0,0.00017928,2]
[373315314,1752942643263,-460.0,0.00017928,2]
[373315316,1752942643273,-460.0,0.00017928,2]